bitfinex-derivatives/quotes_ETHF0:USTF0_20251225
["timestamp","ask_amount","ask_price","bid_price","bid_amount"]
[1766665218521,0.00513021,2926.6,2925.5,6.55701063]
[1766665220624,0.00513021,2926.6,2925.5,6.278]
[1766665227521,3.418,2926.9,2925.5,6.44901]
[1766665227918,0.00392285,2927.2,2925.5,10.74344231]
[1766665228122,3.418,2927.1,2925.5,10.74344231]
[1766665228327,3.418,2927.0,2925.6,3.78911999]
[1766665228525,0.00392285,2927.2,2925.7,3.589]
[1766665228722,3.418,2927.1,2925.7,7.88343231]
[1766665229129,3.418,2927.1,2925.8,4.29443231]
[1766665229332,3.418,2927.1,2925.9,6.296]
[1766665229636,0.00342021,2926.8,2926.0,3.418]
[1766665229833,0.00342021,2926.8,2926.0,3.42108149]
[1766665230329,3.418,2927.1,2926.0,3.42108149]
[1766665230728,3.42192285,2927.2,2926.0,3.42108149]
[1766665231137,3.42192285,2927.2,2926.0,7.7155138]
[1766665231433,3.42192285,2927.2,2926.0,3.42108149]
[1766665233038,3.42192285,2927.2,2926.1,8.546]
[1766665233838,0.00392285,2927.2,2926.1,8.546]
[1766665234043,3.42192285,2927.2,2926.1,8.546]
[1766665237142,0.00392285,2927.2,2926.1,8.546]
[1766665237442,3.42192285,2927.2,2926.1,8.546]
[1766665240243,0.00392285,2927.2,2926.1,8.546]
[1766665240548,3.42192285,2927.2,2926.1,8.546]
[1766665242437,8.545,2928.2,2926.1,8.71697]
[1766665242642,10.81770345,2928.1,2926.9,0.00513021]
[1766665242842,0.17084,2928.4,2926.9,0.00513021]
[1766665243047,3.418,2928.3,2926.9,0.00513021]
[1766665243442,3.418,2928.2,2926.9,0.00513021]
[1766665244152,0.00442937,2928.3,2926.9,0.00513021]
[1766665244337,3.418,2928.2,2926.9,0.00513021]
[1766665245341,0.00442937,2928.3,2926.9,8.54913021]
[1766665245544,3.417,2928.2,2926.9,8.54913021]
[1766665246347,3.417,2928.2,2927.0,6.292]
[1766665246552,3.417,2928.2,2927.1,3.417]
[1766665247255,0.00442937,2928.3,2927.1,3.417]
[1766665247552,3.5,2928.2,2927.1,3.417]
[1766665249051,3.417,2928.1,2927.1,3.417]
[1766665249853,3.417,2928.0,2927.1,3.417]
[1766665251447,3.417,2927.9,2927.1,3.417]
[1766665257964,0.00442937,2928.3,2927.1,3.417]
[1766665258162,3.417,2928.2,2927.1,3.417]
[1766665263367,0.00442937,2928.3,2927.1,3.417]
[1766665263560,3.417,2928.2,2927.1,3.417]
[1766665266266,0.00442937,2928.3,2927.1,3.417]
[1766665266465,3.417,2928.1,2927.1,3.417]
[1766665268768,3.417,2928.0,2927.1,3.417]
[1766665273572,3.417,2928.1,2927.1,3.417]
[1766665277172,0.00442937,2928.3,2926.9,0.00513021]
[1766665277375,4.179,2928.2,2926.9,0.00513021]
[1766665277871,6.601,2928.1,2926.9,0.00513021]
[1766665278079,10.018,2928.1,2926.9,0.00513021]
[1766665279974,0.97360588,2928.0,2926.5,4.29443231]
[1766665280281,0.17088,2927.7,2926.1,4.29443231]
[1766665280480,4.56149588,2927.6,2926.1,4.29443231]
[1766665280780,0.97360588,2927.5,2926.0,0.00308149]
[1766665281074,3.58789,2927.6,2926.5,0.00513021]
[1766665281075,0.0051302,2927.0,2926.5,0.00513021]
[1766665281272,10.019,2926.9,2926.5,0.00513021]
[1766665281675,0.0051302,2927.0,2926.5,0.00513021]
[1766665282077,3.417,2926.9,2926.5,0.00513021]
[1766665286281,3.417,2926.9,2926.2,3.417]
[1766665286481,0.0051302,2927.0,2926.2,3.417]
[1766665286482,3.417,2926.8,2926.2,3.417]
[1766665287274,3.417,2926.8,2926.2,3.42213021]
[1766665292583,0.0051302,2927.0,2926.2,3.42213021]
[1766665292782,3.417,2926.8,2926.2,3.42213021]
[1766665295100,3.418,2926.7,2926.2,3.42213021]
[1766665298300,3.4231302,2927.0,2926.2,3.42213021]
[1766665298800,3.418,2926.9,2926.2,3.42213021]
[1766665299392,6.6031302,2927.0,2926.2,3.42213021]
[1766665299593,3.418,2926.8,2926.2,3.42213021]
[1766665307397,6.595,2926.8,2926.2,3.42213021]
[1766665307599,6.595,2926.9,2926.2,3.42213021]
[1766665307798,3.418,2926.8,2926.2,3.42213021]
[1766665321910,6.59,2926.9,2926.2,3.42213021]
[1766665322115,3.418,2926.8,2926.2,3.42213021]
[1766665325422,0.0051302,2927.0,2926.2,3.42213021]
[1766665325610,10.007,2926.9,2926.2,3.42213021]
[1766665325819,10.007,2926.9,2926.0,1.49904971]
[1766665326522,10.007,2926.9,2926.0,0.00308149]
[1766665326721,10.007,2926.9,2926.2,0.00513021]
[1766665327420,10.006,2926.8,2926.2,0.00513021]
[1766665331115,6.587,2926.7,2926.2,0.00513021]
[1766665331322,10.005,2926.7,2926.2,0.00513021]
[1766665342132,0.0051302,2927.0,2926.2,0.00513021]
[1766665342332,10.001,2926.9,2926.2,0.00513021]
[1766665346635,10.001,2926.9,2926.0,0.00308149]
[1766665347629,10.001,2926.9,2926.2,0.00513021]
[1766665350543,0.0051302,2927.0,2926.2,0.00513021]
[1766665350836,9.998,2926.9,2926.2,0.00513021]
[1766665352243,0.0051302,2927.0,2926.2,0.00513021]
[1766665352640,3.578,2926.9,2926.2,0.00513021]
[1766665357443,0.0051302,2927.0,2926.2,0.00513021]
[1766665357742,9.995,2926.9,2926.2,0.00513021]
[1766665358241,0.0051302,2927.0,2926.2,0.00513021]
[1766665358453,3.418,2926.8,2926.2,0.00513021]
[1766665366054,0.0051302,2927.0,2926.2,0.00513021]
[1766665366256,3.418,2926.9,2926.2,0.00513021]
[1766665366951,0.0051302,2927.0,2926.2,0.00513021]
[1766665367157,3.4231302,2927.0,2926.2,0.00513021]
[1766665369357,0.0051302,2927.0,2926.2,0.00513021]
[1766665416899,0.0051302,2927.0,2926.3,6.267]
[1766665417090,0.0051302,2927.0,2926.4,3.417]
[1766665427599,1.22928995,2928.2,2926.4,3.417]
[1766665427790,3.417,2928.1,2926.4,4.93009538]
[1766665427991,3.417,2928.0,2926.5,4.29443231]
[1766665428592,0.00513021,2927.5,2926.5,4.29443231]
[1766665429294,0.00513021,2927.5,2926.4,7.71143231]
[1766665429699,0.00513021,2927.5,2926.4,9.21793398]
[1766665432997,3.417,2927.4,2926.4,4.92350167]
[1766665433202,3.417,2927.4,2926.4,3.417]
[1766665435304,0.00513021,2927.5,2926.4,3.417]
[1766665435602,3.417,2927.4,2926.4,3.417]
[1766665441013,0.00513021,2927.5,2926.4,3.417]
[1766665441204,3.417,2927.4,2926.4,3.417]
[1766665451520,3.418,2927.3,2926.4,3.417]
[1766665451922,0.00513021,2927.5,2926.4,3.417]
[1766665452222,3.957,2927.4,2926.4,3.417]
[1766665454523,3.957,2927.4,2926.3,1.4746527]
[1766665457318,3.957,2927.4,2926.2,0.00513021]
[1766665460622,4.1279,2927.4,2926.2,0.00513021]
[1766665463033,0.1709,2927.4,2926.2,0.00513021]
[1766665463233,9.958,2927.3,2926.2,0.00513021]
[1766665468538,9.957,2927.2,2926.2,0.00513021]
[1766665470434,0.1709,2927.3,2926.2,0.00513021]
[1766665470735,9.957,2927.2,2926.2,0.00513021]
[1766665501458,0.00513021,2927.5,2926.2,0.00513021]
[1766665501763,0.00513021,2927.5,2926.1,3.418]
[1766665501764,0.17091,2927.3,2926.1,3.418]
[1766665501966,1.14538833,2927.2,2926.0,0.00308149]
[1766665502167,4.39252925,2927.1,2926.0,0.00308149]
[1766665502366,6.528,2927.0,2926.0,0.00308149]
[1766665502566,6.528,2927.0,2926.2,0.00513021]
[1766665504767,6.528,2927.0,2926.2,3.021e-05]
[1766665505164,6.69892,2927.0,2926.2,3.021e-05]
[1766665507669,6.528,2927.0,2926.2,3.021e-05]
[1766665507874,0.17094,2926.8,2926.2,3.021e-05]
[1766665508064,3.418,2926.7,2925.5,3.418]
[1766665508269,6.526,2926.6,2925.5,3.418]
[1766665509066,15.072,2926.6,2925.2,3.418]
[1766665509272,0.17095,2926.5,2924.8,7.71243231]
[1766665509468,15.072,2926.6,2924.8,3.418]
[1766665509469,4.39069616,2926.4,2924.8,3.418]
[1766665509672,3.418,2926.4,2924.8,3.418]
[1766665509974,0.97270806,2926.3,2924.8,3.418]
[1766665510175,0.00513021,2925.8,2925.3,0.00342021]
[1766665510365,9.947,2925.7,2925.3,0.00342021]
[1766665512679,0.00862875,2925.8,2925.3,0.00342021]
[1766665512875,9.948,2925.7,2925.3,0.00342021]
[1766665513067,3.419,2925.7,2925.3,0.00342021]
[1766665513271,0.00862875,2925.8,2925.3,0.00342021]
[1766665524790,3.42762875,2925.8,2925.3,0.00342021]
[1766665525182,0.00862875,2925.8,2925.3,0.00342021]
[1766665537187,2.875e-05,2925.8,2925.3,0.00342021]
[1766665537399,2.875e-05,2925.8,2925.4,3.419]
[1766665537598,3.419,2926.1,2925.4,3.419]
[1766665538197,0.00513021,2926.0,2925.4,3.419]
[1766665538599,0.00808819,2926.0,2925.4,3.419]
[1766665542404,1.40019995,2927.3,2925.4,3.419]
[1766665542594,0.98360246,2927.2,2925.4,3.419]
[1766665542797,10.92360246,2927.1,2925.4,3.419]
[1766665543103,0.98360246,2927.0,2925.4,3.419]
[1766665543299,0.98360246,2926.9,2925.4,3.419]
[1766665543498,0.00513021,2926.4,2925.4,3.419]
[1766665552909,9.937,2926.3,2925.4,3.419]
[1766665554112,0.00513021,2926.4,2925.4,3.419]
[1766665554315,6.517,2926.2,2925.4,3.419]
[1766665558216,0.00513021,2926.4,2925.4,3.419]
[1766665558410,9.935,2926.3,2925.4,3.419]
[1766665561503,0.17609021,2926.4,2925.4,3.419]
[1766665561708,4.777,2926.3,2925.4,3.419]
[1766665563111,0.00513021,2926.4,2925.4,3.419]
[1766665563321,3.42413021,2926.4,2925.4,3.419]
[1766665577627,0.00513021,2926.4,2925.4,3.419]
[1766665577827,3.419,2926.3,2925.4,3.419]
[1766665596651,0.00513021,2926.4,2925.4,3.419]
[1766665596851,3.418,2926.3,2925.4,3.419]
[1766665599652,0.00513021,2926.4,2925.4,3.419]
[1766665599850,3.418,2926.3,2925.4,3.419]
[1766665602050,0.00513021,2926.4,2925.4,3.419]
[1766665602249,3.418,2926.3,2925.4,3.419]
[1766665611659,0.00513021,2926.4,2925.4,3.419]
[1766665611960,3.418,2926.3,2925.4,3.419]
[1766665612758,3.418,2926.3,2925.4,9.655]
[1766665617764,0.00513021,2926.4,2925.4,9.655]
[1766665618064,3.418,2926.3,2925.4,9.655]
[1766665625372,0.00513021,2926.4,2925.4,9.655]
[1766665626359,0.00513021,2926.4,2925.4,11.05519171]
[1766665626663,3.021e-05,2926.4,2925.4,11.05519171]
[1766665634675,3.021e-05,2926.4,2925.4,11.22620171]
[1766665636770,3.021e-05,2926.4,2925.5,4.29443231]
[1766665638178,3.021e-05,2926.4,2925.6,4.29443231]
[1766665638375,3.021e-05,2926.4,2925.7,9.659]
[1766665638571,0.00363858,2926.9,2925.7,9.659]
[1766665638773,3.418,2926.8,2925.7,9.659]
[1766665639571,0.00513021,2926.5,2925.7,9.659]
[1766665640476,0.00363858,2926.9,2925.7,9.659]
[1766665640681,3.42163858,2926.9,2925.7,9.659]
[1766665641579,0.00513021,2926.6,2925.7,9.659]
[1766665644782,3.42163858,2926.9,2925.7,9.659]
[1766665645082,0.00363858,2926.9,2925.7,9.659]
[1766665645283,3.42163858,2926.9,2925.7,9.659]
[1766665645682,0.00513021,2926.6,2925.7,9.659]
[1766665646185,0.00363858,2926.9,2925.7,9.659]
[1766665647081,0.00363858,2926.9,2925.8,4.29443231]
[1766665648490,0.00363858,2926.9,2925.8,4.46542231]
[1766665648882,0.00363858,2926.9,2925.8,5.90972948]
[1766665649283,3.858e-05,2926.9,2925.9,0.17098]
[1766665649496,3.858e-05,2926.9,2926.0,16.42941231]
[1766665649692,3.858e-05,2926.9,2926.1,6.241]
[1766665651288,0.17085,2928.2,2926.1,6.41197]
[1766665651289,3.418,2927.4,2926.1,6.41197]
[1766665651492,3.418,2927.4,2926.5,0.00513021]
[1766665651688,6.484,2928.0,2926.6,9.664]
[1766665651893,3.418,2927.9,2926.6,9.664]
[1766665652292,3.42211041,2927.9,2926.6,9.664]
[1766665656498,0.00411041,2927.9,2926.6,9.664]
[1766665656798,3.418,2927.8,2926.6,9.664]
[1766665663303,0.00411041,2927.9,2926.6,9.664]
[1766665663494,9.897,2927.8,2926.6,9.664]
[1766665668514,0.00411041,2927.9,2926.6,9.664]
[1766665668806,9.896,2927.8,2926.6,9.664]
[1766665669006,6.478,2927.8,2926.6,9.664]
[1766665669208,3.417,2927.7,2926.6,9.664]
[1766665674912,0.00411041,2927.9,2926.6,9.664]
[1766665675212,9.894,2927.8,2926.6,9.664]
[1766665676212,0.00411041,2927.9,2926.6,9.664]
[1766665676412,6.476,2927.7,2926.6,9.664]
[1766665677013,0.00411041,2927.9,2926.6,9.664]
[1766665677211,9.893,2927.8,2926.6,9.664]
[1766665679611,6.475,2927.8,2926.6,9.664]
[1766665680014,3.417,2927.7,2926.6,9.664]
[1766665681114,6.475,2927.8,2926.6,9.664]
[1766665681317,3.417,2927.7,2926.6,9.664]
[1766665682216,0.00411041,2927.9,2926.6,9.664]
[1766665682719,3.417,2927.8,2926.6,9.664]
[1766665682919,3.417,2927.7,2926.6,9.664]
[1766665684420,0.00411041,2927.9,2926.6,9.664]
[1766665684615,3.417,2927.8,2926.6,9.664]
[1766665684820,3.417,2927.8,2926.6,13.95843231]
[1766665685220,0.00411041,2927.9,2926.6,13.95843231]
[1766665685421,3.42111041,2927.9,2926.6,13.95843231]
[1766665685716,0.00411041,2927.9,2926.7,4.29443231]
[1766665685919,0.00411041,2927.9,2926.8,8.544]
[1766665686121,0.00411041,2927.9,2926.9,3.417]
[1766665686318,0.00411041,2927.9,2927.0,6.238]
[1766665699530,3.417,2927.8,2927.0,6.238]
[1766665701632,0.00411041,2927.9,2927.0,6.238]
[1766665701931,3.417,2927.8,2927.0,6.238]
[1766665707935,0.00411041,2927.9,2927.0,6.238]
[1766665708132,3.42111041,2927.9,2927.0,6.238]
[1766665708346,0.00411041,2927.9,2927.0,6.238]
[1766665709632,4.339,2928.5,2927.0,6.238]
[1766665709833,3.417,2928.4,2927.0,6.238]
[1766665710033,3.417,2928.4,2927.0,10.53243231]
[1766665710340,3.417,2928.4,2927.0,6.238]
[1766665710738,3.42101871,2928.4,2927.0,6.238]
[1766665710942,0.00401871,2928.4,2927.0,6.238]
[1766665711139,3.417,2928.3,2927.0,6.238]
[1766665711541,3.417,2928.3,2927.0,10.53243231]
[1766665712946,0.00401871,2928.4,2927.0,10.53243231]
[1766665713144,3.417,2928.3,2927.0,10.53243231]
[1766665713539,0.00401871,2928.4,2927.0,10.53243231]
[1766665713741,3.417,2928.3,2927.0,10.53243231]
[1766665715649,0.00401871,2928.4,2927.0,10.53243231]
[1766665715851,3.417,2928.3,2927.0,10.53243231]
[1766665716350,3.417,2928.3,2927.0,6.238]
[1766665716845,3.417,2928.3,2927.0,10.53243231]
[1766665717245,3.417,2928.3,2927.0,6.238]
[1766665718154,3.417,2928.2,2927.0,6.238]
[1766665719352,3.417,2928.3,2927.0,10.53243231]
[1766665722950,0.00401871,2928.4,2927.0,10.53243231]
[1766665723150,3.42101871,2928.4,2927.0,10.53243231]
[1766665723751,3.42101871,2928.4,2927.0,10.70335231]
[1766665731054,3.42101871,2928.4,2927.0,6.40892]
[1766665732564,3.42101871,2928.4,2926.9,0.00297033]
[1766665732765,3.42101871,2928.4,2927.0,3.416]
[1766665734366,8.542,2928.3,2927.0,3.416]
[1766665735070,0.97273433,2928.2,2927.0,3.416]
[1766665735267,9.873,2928.1,2926.9,0.00297033]
[1766665741772,9.872,2928.0,2926.9,0.00297033]
[1766665743872,9.872,2927.9,2926.9,0.00297033]
[1766665744368,9.872,2927.8,2926.9,0.00297033]
[1766665747268,0.17085,2928.3,2926.9,0.00297033]
[1766665747469,18.414,2928.2,2926.9,0.00297033]
[1766665748771,6.454,2928.1,2926.9,0.00297033]
[1766665748982,0.17085,2928.3,2926.9,0.00297033]
[1766665749167,7.393,2928.2,2927.0,3.417]
[1766665750281,0.17085,2928.3,2927.0,3.417]
[1766665750480,6.922,2928.2,2927.0,3.417]
[1766665752782,0.17085,2928.3,2927.0,3.417]
[1766665752982,6.921,2928.2,2927.0,3.417]
[1766665758386,0.17085,2928.3,2927.0,3.417]
[1766665758581,9.868,2928.2,2927.0,3.417]
[1766665767987,0.17085,2928.3,2927.0,3.417]
[1766665768184,7.529,2928.2,2927.0,3.417]
[1766665769296,0.17085,2928.3,2927.0,3.417]
[1766665769694,7.528,2928.2,2927.0,3.417]
[1766665771300,6.447,2928.1,2927.0,3.417]
[1766665771498,9.864,2928.1,2927.0,3.417]
[1766665776197,0.17085,2928.3,2927.0,3.417]
[1766665776398,10.83651838,2928.2,2927.0,3.417]
[1766665776597,9.862,2928.2,2927.0,3.417]
[1766665777398,0.17085,2928.3,2927.0,3.417]
[1766665777802,7.93,2928.2,2927.0,3.417]
[1766665779095,3.417,2928.1,2927.0,3.417]
[1766665780903,0.00401871,2928.4,2927.0,3.417]
[1766665781198,9.861,2928.3,2927.0,3.417]
[1766665791817,0.00401871,2928.4,2927.0,3.417]
[1766665792016,3.417,2928.3,2927.0,3.417]
[1766665794021,6.44401871,2928.4,2927.0,3.417]
[1766665794214,3.417,2928.2,2927.0,3.417]
[1766665795215,0.00401871,2928.4,2927.0,3.417]
[1766665795410,3.417,2928.3,2927.0,3.417]
[1766665797414,0.00401871,2928.4,2927.1,8.542]
[1766665797613,3.417,2928.2,2927.1,8.542]
[1766665797919,3.417,2928.2,2927.1,10.00045156]
[1766665799124,3.417,2928.2,2927.2,6.224]
[1766665799314,3.417,2928.2,2927.3,3.417]
[1766665800428,0.00401871,2928.4,2927.3,3.417]
[1766665800618,3.417,2928.3,2927.3,3.417]
[1766665803026,3.417,2928.2,2927.3,3.417]
[1766665807523,0.00401871,2928.4,2927.3,3.417]
[1766665808227,3.417,2928.3,2927.3,3.417]
[1766665808826,3.417,2928.2,2927.3,3.417]
[1766665812928,0.00401871,2928.4,2927.3,3.417]
[1766665813124,3.416,2928.3,2927.3,3.417]
[1766665825839,0.00401871,2928.4,2927.3,3.417]
[1766665826146,3.416,2928.3,2927.3,3.417]
[1766665830555,0.00401871,2928.4,2927.3,3.417]
[1766665830858,3.416,2928.3,2927.3,3.417]
[1766665831557,0.00401871,2928.4,2927.3,3.417]
[1766665831760,3.416,2928.3,2927.3,3.417]
[1766665835757,0.00401871,2928.4,2927.3,3.417]
[1766665835953,3.416,2928.3,2927.3,3.417]
[1766665840865,0.00401871,2928.4,2927.3,3.417]
[1766665841056,3.416,2928.3,2927.3,3.417]
[1766665843454,0.00401871,2928.4,2927.3,3.417]
[1766665843854,3.416,2928.3,2927.3,3.417]
[1766665850162,3.416,2928.2,2927.3,3.417]
[1766665853773,0.00401871,2928.4,2927.3,3.417]
[1766665854069,3.416,2928.3,2927.3,3.417]
[1766665863781,0.00401871,2928.4,2927.3,3.417]
[1766665863976,3.416,2928.3,2927.3,3.417]
[1766665865474,3.416,2928.2,2927.3,3.417]
[1766665869284,0.00401871,2928.4,2927.3,3.417]
[1766665869484,3.416,2928.3,2927.3,3.417]
[1766665871077,3.416,2928.2,2927.3,3.417]
[1766665873184,0.00401871,2928.4,2927.3,3.417]
[1766665873384,3.416,2928.3,2927.3,3.417]
[1766665879688,0.00401871,2928.4,2927.3,3.417]
[1766665879988,3.416,2928.3,2927.3,3.417]
[1766665882387,0.00401871,2928.4,2927.3,3.417]
[1766665882587,3.416,2928.3,2927.3,3.417]
[1766665884890,0.00401871,2928.4,2927.3,3.417]
[1766665885190,3.42001871,2928.4,2927.3,3.417]
[1766665886090,0.00401871,2928.4,2927.3,3.417]
[1766665886293,3.416,2928.3,2927.3,3.417]
[1766665893597,0.00401871,2928.4,2927.3,3.417]
[1766665893797,3.416,2928.3,2927.3,3.417]
[1766665899198,0.00401871,2928.4,2927.3,3.417]
[1766665899397,3.416,2928.3,2927.3,3.417]
[1766665900003,3.42001871,2928.4,2927.3,3.417]
[1766665900898,0.00401871,2928.4,2927.3,3.417]
[1766665903397,0.97004581,2929.2,2927.3,7.71143231]
[1766665903595,4.39407352,2929.1,2927.3,7.71143231]
[1766665903797,3.416,2929.1,2927.3,7.71143231]
[1766665904498,3.41993219,2929.1,2927.3,7.71143231]
[1766665906205,3.41993219,2929.1,2927.3,3.417]
[1766665907804,0.00393219,2929.1,2927.3,3.417]
[1766665908006,9.836,2929.0,2927.3,3.417]
[1766665908201,0.00393219,2929.1,2927.3,7.88233231]
[1766665908395,3.416,2929.0,2927.3,7.88233231]
[1766665908601,3.416,2929.0,2927.4,4.29443231]
[1766665909902,0.00393219,2929.1,2927.4,4.29443231]
[1766665910107,3.416,2929.0,2927.5,0.17089]
[1766665910404,3.416,2929.0,2928.0,0.00513021]
[1766665910606,3.416,2929.0,2928.1,9.631]
[1766665911802,0.00393219,2929.1,2928.1,9.631]
[1766665912006,3.416,2929.0,2928.1,9.631]
[1766665912509,0.00393219,2929.1,2928.1,9.631]
[1766665913106,3.41993219,2929.1,2928.1,9.631]
[1766665913407,0.00393219,2929.1,2928.1,9.631]
[1766665913613,3.41993219,2929.1,2928.1,9.631]
[1766665914111,0.00393219,2929.1,2928.1,9.631]
[1766665937937,3.415,2929.3,2928.1,9.631]
[1766665939037,3.41799731,2929.3,2928.1,13.92543231]
[1766665939929,0.00299731,2929.3,2928.1,13.92543231]
[1766665940134,3.41799731,2929.3,2928.1,13.92543231]
[1766665940429,3.41799731,2929.3,2928.2,4.29443231]
[1766665942744,0.00299731,2929.3,2928.2,4.29443231]
[1766665943045,3.41799731,2929.3,2928.1,13.92543231]
[1766665946344,3.41799731,2929.3,2928.1,9.631]
[1766665946644,3.41799731,2929.3,2928.1,4.89753869]
[1766665947348,3.41799731,2929.3,2928.1,4.89870897]
[1766665947547,3.41799731,2929.3,2928.1,3.416]
[1766665947741,3.41799731,2929.3,2928.0,6.21413021]
[1766665947947,0.97708627,2929.2,2928.0,0.00513021]
[1766665948148,4.41208627,2929.1,2928.0,0.00513021]
[1766665948349,3.415,2929.0,2928.0,0.00513021]
[1766665949152,3.415,2929.0,2928.0,3.021e-05]
[1766665949753,0.97596133,2928.9,2928.0,3.021e-05]
[1766665949950,3.58581,2929.0,2928.0,3.021e-05]
[1766665950151,0.00510001,2928.8,2928.0,3.021e-05]
[1766665950456,3.415,2928.7,2928.0,3.021e-05]
[1766665954157,9.822,2928.6,2928.0,3.021e-05]
[1766665954663,0.00510001,2928.8,2928.0,3.021e-05]
[1766665954856,6.407,2928.7,2928.0,3.021e-05]
[1766665955162,3.416,2928.6,2928.0,3.021e-05]
[1766665955656,0.00510001,2928.8,2928.0,3.021e-05]
[1766665955861,9.823,2928.7,2928.0,3.021e-05]
[1766665957358,0.00510001,2928.8,2928.0,3.021e-05]
[1766665957755,3.416,2928.7,2928.0,3.021e-05]
[1766665962666,3.416,2928.6,2928.0,3.021e-05]
[1766665963768,0.00510001,2928.8,2928.0,3.021e-05]
[1766665963968,3.416,2928.7,2928.0,3.021e-05]
[1766665964567,0.00510001,2928.8,2928.0,3.021e-05]
[1766665964769,3.416,2928.6,2928.0,3.021e-05]
[1766665966476,0.00510001,2928.8,2928.0,3.021e-05]
[1766665966768,3.416,2928.7,2928.0,3.021e-05]
[1766665967363,0.00510001,2928.8,2928.0,3.021e-05]
[1766665967565,3.416,2928.7,2928.0,3.021e-05]
[1766665969369,0.00510001,2928.8,2928.0,3.021e-05]
[1766665969675,3.42110001,2928.8,2928.0,3.021e-05]
[1766665973372,0.00510001,2928.8,2928.1,3.416]
[1766665973567,3.416,2929.0,2928.1,3.416]
[1766665978774,0.00299731,2929.3,2928.1,3.416]
[1766665978976,3.416,2929.2,2928.1,3.416]
[1766665984486,0.00299731,2929.3,2928.1,3.416]
[1766665984986,3.415,2929.2,2928.1,3.416]
[1766665985787,3.415,2929.1,2928.1,3.416]
[1766665986288,0.00299731,2929.3,2928.1,3.416]
[1766665986491,3.415,2929.2,2928.1,3.416]
[1766665987186,0.00299731,2929.3,2928.1,3.416]
[1766665987589,3.415,2929.2,2928.1,3.416]
[1766665996002,3.415,2929.1,2928.1,3.416]
[1766665998602,0.00299731,2929.3,2928.1,3.416]
[1766665998797,3.415,2929.2,2928.1,3.416]
[1766665999105,0.00299731,2929.3,2928.1,3.416]
[1766665999400,3.415,2929.2,2928.1,3.416]
[1766666001508,0.00299731,2929.3,2928.1,3.416]
[1766666001804,3.415,2929.2,2928.1,3.416]
[1766666010210,0.00299731,2929.3,2928.1,3.416]
[1766666010512,3.415,2929.2,2928.1,3.416]
[1766666011611,0.00299731,2929.3,2928.1,3.416]
[1766666011810,3.415,2929.2,2928.1,3.416]
[1766666012809,0.00299731,2929.3,2928.1,3.416]
[1766666013010,3.415,2929.2,2928.1,3.416]
[1766666015411,6.391,2929.2,2928.1,3.416]
[1766666015612,3.415,2929.1,2928.1,3.416]
[1766666016315,3.415,2929.0,2928.1,3.416]
[1766666018918,0.00299731,2929.3,2928.1,3.416]
[1766666019119,9.805,2929.2,2928.1,3.416]
[1766666020815,3.415,2929.1,2928.1,3.416]
[1766666023817,0.00299731,2929.3,2928.1,3.416]
[1766666024119,3.415,2929.2,2928.1,3.416]
[1766666028425,0.00299731,2929.3,2928.1,3.416]
[1766666028625,3.415,2929.2,2928.1,3.416]
[1766666029728,0.00299731,2929.3,2928.1,3.416]
[1766666029924,3.415,2929.2,2928.1,3.416]
[1766666031826,0.00299731,2929.3,2928.1,3.416]
[1766666031827,3.415,2929.1,2928.1,3.416]
[1766666032625,0.00299731,2929.3,2928.1,3.416]
[1766666032827,3.415,2929.2,2928.1,3.416]
[1766666038134,0.00299731,2929.3,2928.1,3.416]
[1766666038322,3.415,2929.2,2928.1,3.416]
[1766666038723,3.415,2929.2,2928.1,4.91485246]
[1766666041327,0.00299731,2929.3,2928.1,4.91485246]
[1766666041633,3.415,2929.2,2928.1,4.91485246]
[1766666044339,0.00299731,2929.3,2928.1,4.91485246]
[1766666044530,3.415,2929.2,2928.1,4.91485246]
[1766666045038,0.00299731,2929.3,2928.1,4.91485246]
[1766666045238,3.415,2929.2,2928.1,4.91485246]
[1766666046635,0.00299731,2929.3,2928.1,4.91485246]
[1766666046835,3.415,2929.2,2928.1,4.91485246]
[1766666051338,3.415,2929.2,2928.1,9.19145851]
[1766666052438,3.41799731,2929.3,2928.1,9.19145851]
[1766666053040,0.00299731,2929.3,2928.1,9.19145851]
[1766666053234,3.41799731,2929.3,2928.1,9.19145851]
[1766666053429,3.41799731,2929.3,2928.2,4.27660605]
[1766666053939,0.00299731,2929.3,2928.2,4.27660605]
[1766666054139,3.41799731,2929.3,2928.2,4.27660605]
[1766666056040,0.00299731,2929.3,2928.2,4.27660605]
[1766666061945,0.00299731,2929.3,2928.1,9.19145851]
[1766666062243,0.00299731,2929.3,2928.2,4.27660605]
[1766666066343,0.00299731,2929.3,2928.3,4.27660605]
[1766666066547,0.00299731,2929.3,2928.4,9.605]
[1766666066736,3.415,2929.5,2928.4,9.605]
[1766666066936,3.415,2930.2,2928.5,12.54078072]
[1766666067133,0.7963638,2930.6,2928.7,4.27660605]
[1766666067339,3.415,2930.5,2928.8,3.415]
[1766666067540,3.415,2930.5,2928.8,7.69160605]
[1766666067738,3.4193561,2930.5,2928.9,6.19]
[1766666068141,0.0043561,2930.5,2928.9,6.36081]
[1766666068342,3.415,2930.4,2928.9,12.10000401]
[1766666070341,3.415,2930.4,2928.9,7.82339796]
[1766666072743,3.415,2930.4,2928.9,7.65258796]
[1766666073050,3.415,2930.4,2928.9,6.19]
[1766666073253,3.415,2930.4,2928.5,5.73880444]
[1766666073545,3.415,2930.4,2928.6,18.144]